Cogmind - Beta 14 *** ADVENTURER MODE // 2025.04.24 @ 15:14:31 Player: Jefffff Result: Destroyed by S-10 Pest with Light Assault Rifle Performance ------------- Evolutions (0) 0 Regions Visited (2) 400 Robots Destroyed (26) 130 Value Destroyed (684) 684 Prototype IDs (2) 40 Alien Tech Used (0) 0 Bonus (0) 0 TOTAL SCORE: 1254 Bonus ------- None Cogmind --------- Core Integrity 0/250 Matter 300/300 Energy 200/200 System Corruption 0% Temperature Cool (0) Movement Rolling (145) Ox3 Location -10/Subcaves Parts ------- > --- POWER (1) -------- Subdweller Power Source > --- PROPULSION (2) --- Aluminum Leg Compact Wheel > --- UTILITY (2) ------ High-capacity Storage Unit Signal Interpreter > --- WEAPON (2) ------- Riot Gun Subdweller Beam Cannon > --- INVENTORY (20) --- Subdweller Power Source Subdweller Monowheel Improved Heat Sink Signal Interpreter Weapon Shielding Makeshift Kinetic Plating Heavy Riot Gun Subdweller Laser Subdweller Beam Cannon Subdweller Machine Gun Subdweller Machine Gun Grenade Launcher Shrapnel Trap Scrap Shield Fragment (48) Scrap Shield Fragment (47) Peak State ------------ > --- POWER ------------ Subdweller Power Source > --- PROPULSION ------- Aluminum Leg Compact Wheel > --- UTILITY ---------- High-capacity Storage Unit Signal Interpreter > --- WEAPON ----------- Riot Gun Subdweller Beam Cannon > --- INVENTORY -------- Subdweller Power Source Subdweller Monowheel Improved Heat Sink Signal Interpreter Weapon Shielding Makeshift Kinetic Plating Heavy Riot Gun Subdweller Laser Subdweller Beam Cannon Subdweller Machine Gun Subdweller Machine Gun Grenade Launcher Shrapnel Trap Scrap Shield Fragment Scrap Shield Fragment [Rating: 14] Favorites ----------- Power Ion Engine Engine Ion Engine Propulsion Aluminum Leg Leg Aluminum Leg Wheel Compact Wheel Utility Signal Interpreter Storage High-capacity Storage Unit Processor Signal Interpreter Weapon Light Assault Rifle Energy Gun Medium Laser Energy Cannon Subdweller Beam Cannon Ballistic Gun Light Assault Rifle Ballistic Cannon Light Cannon Build | -11 -10 -10 ------- Run | Yrd Mat Sub Slots Evolved . | . . . Power . | . . . Propulsion . | . . . Utility . | . . . Weapon . | . . . Parts Attached 24 | 4 15 5 Power 7 | . 6 1 Engine 7 | . 6 1 Core . | . . . Reactor . | . . . Propulsion 6 | 2 3 1 Treads . | . . . Leg 5 | 2 3 . Wheel 1 | . . 1 Hover . | . . . Flight . | . . . Utility 4 | 1 3 . Device . | . . . Storage 3 | 1 2 . Processor 1 | . 1 . Hackware . | . . . Protection . | . . . Artifact . | . . . Weapon 7 | 1 3 3 Energy Gun 3 | 1 1 1 Energy Cannon 1 | . . 1 Ballistic Gun 2 | . 1 1 Ballistic Cannon 1 | . 1 . Launcher . | . . . Special Weapon . | . . . Impact Weapon . | . . . Slashing Weapon . | . . . Piercing Weapon . | . . . Special Melee Weapon . | . . . Unidentified Prototypes . | . . . Parts Lost 3 | . 1 2 Power 1 | . 1 . Propulsion . | . . . Utility . | . . . Weapon 2 | . . 2 Highest Loss Streak 2 | . 1 2 To Critical Strikes . | . . . Average Slot Usage (%) 99 | . 98 99 Engine 13 | . 13 14 Leg 25 | . 28 23 Wheel 2 | . . 4 Storage 14 | . 14 14 Processor 13 | . 13 14 Energy Gun 9 | . 15 3 Energy Cannon 1 | . . 3 Ballistic Gun 8 | . 7 10 Ballistic Cannon 7 | . 4 10 Peak Build Rating 14 | 4 7 14 Average Rating 8 | 2 6 9 On Entrance 3 | . 4 7 Naked Turns . | . . . Heaviest Build 56 | 7 49 56 Greatest Support 20 | 20 20 20 Greatest Overweight (x) 3 | . 2 3 Average Overweight (x) 1 | . . 2 Largest Inventory Capacity 20 | 8 20 20 Average Capacity 13 | 6 8 20 Most Carried 15 | 4 5 15 Average Carried 7 | 2 4 10 Final Capacity 20 | 8 20 20 Final Carried 15 | 4 5 15 Class Distribution -------------------- 53% | Scavenger-Mutant 46% | Mutant Dominant Class ---------------- Mutant | -10/Materials Scavenger-Mutant | -10/Subcaves Resources | -11 -10 -10 ----------- Run | Yrd Mat Sub Matter Collected 744 | 149 449 146 Remotely . | . . . Salvage Created 783 | . 595 188 Parts 54 | . 41 13 Haulers Intercepted 2 | . 2 . Recyclers Shooed 1 | . 1 . Parts Field Recycled . | . . . Retrieved Matter . | . . . Parts Self-Destructed 7 | . . 7 Prevented . | . . . Kills | -11 -10 -10 ------- Run | Yrd Mat Sub Combat Hostiles Destroyed 21 | . 15 6 Guns 17 | . 15 2 Cannons 4 | . . 4 Classes Destroyed 5 | . 4 1 Hauler 2 | . 2 . Watcher 3 | . 3 . Swarmer 6 | . 6 . Grunt 9 | . 9 . Subdweller 6 | . . 6 Best Kill Streak 3 | . 3 3 Combat Bots Only 3 | . 3 3 Max Kills in Single Turn 2 | . 2 1 Gunslinging 1 | . 1 . Exploded . | . . . Melee . | . . . Uniques/NPCs Destroyed . | . . . Combat | -11 -10 -10 -------- Run | Yrd Mat Sub Hostile Shots Fired 118 | . 56 62 Missed 35 | . 15 20 Damage Taken 1001 | . 375 626 Core 255 | . 74 181 Absorbed by Shields . | . . . Ignored by Resistances 295 | . 116 179 Regen/Repaired (Parts) 39 | . 39 . Core Remaining (%) 100 | 100 . . Volleys Fired 80 | . 52 28 Largest 2 | . 2 2 Hottest 130 | . 90 130 Shots Fired 159 | . 104 55 Gun 132 | . 104 28 Cannon 27 | . . 27 Launcher . | . . . Special . | . . . Kinetic 61 | . 18 43 Thermal 92 | . 86 6 Explosive . | . . . Electromagnetic 6 | . . 6 Robot Hit Streak 23 | . 14 23 Robot Miss Streak 3 | . 3 2 Penetration Max . | . . . Secondary Targets 3 | . 3 . Max Gunslinging Chain 1 | . 1 . Shots Hit Robots 128 | . 81 47 Core Hits 49 | . 34 15 Critical Kills . | . . . Critical Parts Destroyed . | . . . Critical Strikes 4 | . 4 . Burn 4 | . 4 . Melee Attacks . | . . . Impact . | . . . Slashing . | . . . Piercing . | . . . Sneak Attacks . | . . . Combat Hostiles . | . . . Follow-up Attacks . | . . . Damage Inflicted 1492 | . 928 564 Guns 1150 | . 928 222 Cannons 342 | . . 342 Explosions . | . . . Melee . | . . . Ramming . | . . . Kinetic 490 | . 126 364 Thermal 913 | . 802 111 Explosive . | . . . Electromagnetic 89 | . . 89 Impact . | . . . Slashing . | . . . Piercing . | . . . Highest Corruption . | . . . Average Corruption . | . . . Corruption Purged . | . . . Corruption Blocked . | . . . Overload Shots . | . . . Overflow Damage . | . . . Projectiles . | . . . Explosions . | . . . Melee . | . . . Knockbacks 3 | . . 3 Impact . | . . . Kinetic 3 | . . 3 Secondary . | . . . Self-Inflicted Damage . | . . . Shots . | . . . Rammed . | . . . Targets Rammed . | . . . Kicked . | . . . Crushed . | . . . Highest Temperature 266 | . 266 199 Average Temperature 84 | . 89 49 Received Heat Transfer 668 | . 228 440 Siege Activations . | . . . Robots Corrupted . | . . . Combat Hostiles . | . . . Parts Fried . | . . . Impact Corruptions . | . . . Robots Melted . | . . . Combat Hostiles . | . . . Parts Melted 7 | . 7 . Heat Transferred 2635 | . 2487 148 Parts Sabotaged . | . . . Parts Stolen . | . . . Parts Stripped . | . . . Power Chain Reactions . | . . . Alert | -11 -10 -10 ------- Run | Yrd Mat Sub Peak Influence 169 | . 169 . Initial . | . . . Average 55 | . 57 . Maximum Alert Level . | . . . Low Security (%) 100 | 100 100 . Level 1 . | . . . Level 2 . | . . . Level 3 . | . . . Level 4 . | . . . Level 5 . | . . . High Security . | . . . Max Security . | . . . Squads Dispatched 1 | . 1 . Investigation 1 | . 1 . Extermination . | . . . Reinforcement . | . . . Assault . | . . . Garrison . | . . . Intercept . | . . . Searches Triggered . | . . . Construction Impeded . | . . . Haulers Reinforced . | . . . Active Scanning Responses . | . . . Cargo Convoy Interrupts . | . . . Stealth | -11 -10 -10 --------- Run | Yrd Mat Sub Distress Signals 3 | . 3 . Communications Jammed . | . . . Distress Signals . | . . . Times Spotted 33 | . 21 12 Peak Tracking Total 6 | . 3 6 Tactical Retreats 1 | . . 1 Traps | -11 -10 -10 ------- Run | Yrd Mat Sub Traps Triggered 2 | . 2 . Indirectly . | . . . Trap Hack Attempts . | . . . Triggered . | . . . Disarmed . | . . . Reprogrammed . | . . . Reused . | . . . Traps Extracted . | . . . Installed . | . . . Triggered . | . . . Most Traps Carried 1 | . . 1 Machines | -11 -10 -10 ---------- Run | Yrd Mat Sub Machines Disabled . | . . . Max in Single Turn . | . . . Machines Repaired . | . . . Machines Dismantled . | . . . Machines Sabotaged . | . . . Overloaded Fab Kills . | . . . Hacking | -11 -10 -10 --------- Run | Yrd Mat Sub Machines Accessed 4 | . 4 . Terminals 3 | . 3 . Fabricators . | . . . Repair Stations 1 | . 1 . Recycling Units . | . . . Scanalyzers . | . . . Garrison Access . | . . . Total Hacks 15 | . 15 . Successful 13 | . 13 . Failed 2 | . 2 . Catastrophic . | . . . Database Lockouts . | . . . Manual 3 | . 3 . Terminals 13 | . 13 . Fabricators . | . . . Repair Stations 2 | . 2 . Recycling Units . | . . . Scanalyzers . | . . . Garrison Access . | . . . Terminal Hacks 9 | . 9 . Record 7 | . 7 . Prototype ID Bank 1 | . 1 . Maintenance Status 1 | . 1 . Fabricator Hacks . | . . . Repair Station Hacks 2 | . 2 . Scan Component 1 | . 1 . Repair 1 | . 1 . Recycling Unit Hacks . | . . . Scanalyzer . | . . . Garrison Access Hacks . | . . . Unauthorized Hacks 2 | . 2 . Terminals 2 | . 2 . Botnet 2 | . 2 . Fabricators . | . . . Repair Stations . | . . . Recycling Units . | . . . Scanalyzers . | . . . Garrison Access . | . . . Data Cores Recovered . | . . . Used . | . . . Hacking Detections 3 | . 3 . Full Trace Events . | . . . Feedback Events . | . . . Feedback Blocked . | . . . Robot Schematics Acquired . | . . . Robots Built . | . . . Authchips . | . . . Time . | . . . Total Robot Build Rating . | . . . Part Schematics Acquired . | . . . Parts Built . | . . . Authchips . | . . . Time . | . . . Total Part Build Rating . | . . . Parts Repaired 1 | . 1 . Time 26 | . 26 . Parts Recycled . | . . . Recycled Matter . | . . . Retrieved Matter . | . . . Retrieved Components . | . . . Parts Scanalyzed . | . . . Part Schematics Acquired . | . . . Parts Damaged . | . . . Bothacking | -11 -10 -10 ------------ Run | Yrd Mat Sub Used RIF Installer . | . . . Robots Hacked . | . . . Non-combat . | . . . Combat . | . . . Robot Hacks Applied . | . . . Relay Couplers Released . | . . . Fabnet Peak Effective % . | . . . Robots Rewired . | . . . Allies Hacked . | . . . Hacks Repelled . | . . . Allies | -11 -10 -10 -------- Run | Yrd Mat Sub Total Allies . | . . . Largest Group . | . . . Highest-Rated Group . | . . . Highest-Rated Ally . | . . . Total Orders . | . . . Ally Attacks . | . . . Total Damage . | . . . Kills . | . . . Allies Corrupted . | . . . Allies Melted . | . . . Intel | -11 -10 -10 ------- Run | Yrd Mat Sub Robot Analysis Total . | . . . Derelict Logs Recovered 1 | . . 1 Drone Launches . | . . . Drone Recoveries . | . . . Exploration | -11 -10 -10 ------------- Run | Yrd Mat Sub Turns Passed 3410 | 60 1772 1578 Spaces Moved 1739 | 43 1007 689 Core 4 | 4 . . Treads . | . . . Legs 1446 | 39 1007 400 Wheels 289 | . . 289 Hover . | . . . Flight . | . . . Fastest Speed 50 | 50 120 145 Average Speed 167 | 113 139 211 Slowest Speed 260 | 120 260 260 Overloaded Moves . | . . . Propulsion Burnouts . | . . . Robots Hopped . | . . . Cave-ins Triggered . | . . . Exploration Rate (%) 48 | 4 101 39 Regions Visited 2 Branch Regions 1 Pre-discovered Areas . | . . . Known Exits Taken 1 | . 1 . Unknown Exits Taken 1 | 1 . . Scrap Searched 1 | . . 1 Spaces Dug . | . . . Terrain Destroyed 1 | . . 1 Melee . | . . . Projectile 1 | . . 1 AOE . | . . . Terrain Rammed . | . . . Walls Destroyed . | . . . Machines Disabled . | . . . Actions | -11 -10 -10 --------- Run | Yrd Mat Sub Total 2087 | 52 1279 756 Wait 211 | 2 191 18 Move 1737 | 42 1006 689 Hop . | . . . Pick Up 24 | 4 6 14 Fast Attach 9 | 4 5 . Attach 5 | . 3 2 Detach . | . . . Swap 10 | . 7 3 Drop 11 | . 9 2 Fire 80 | . 52 28 Melee . | . . . Ram . | . . . Kick . | . . . Crush . | . . . Escape Stasis . | . . . Rewire . | . . . Trap . | . . . Miscellaneous . | . . . Route ------- -11/Scrapyard -10/Materials (discovered 5 exits: [*Mat x3] / [*Min] / *Sub) -10/Subcaves (discovered 1 exit: [*Rec]) History --------- Turn | Location | Event 10 | -11/Scrapyard | Discovered new exit (range 15) 61 | -11/Scrapyard | Entered Materials 314 | -10/Materials | Build established: Mutant 324 | -10/Materials | Discovered new exit (range 3) 684 | -10/Materials | Discovered new exit (range 7) 1176 | -10/Materials | Discovered new exit (range 3) 1247 | -10/Materials | Repaired Ion Engine 1412 | -10/Materials | Discovered new exit (range 6) 1417 | -10/Materials | Identified exit to Subcaves 1546 | -10/Materials | Build established: Scavenger-Mutant 1663 | -10/Materials | Discovered new exit (range 10) 1833 | -10/Materials | Entered Subcaves 1884 | -10/Subcaves | Shifting Twisted Machinery released Sub. Power Source 2269 | -10/Subcaves | Shifting Twisted Machinery released Sub. Laser 2337 | -10/Subcaves | Shifting Twisted Machinery released Hvy. Riot Gun 2425 | -10/Subcaves | A swath of the cavern ceiling suddenly collapsed 2925 | -10/Subcaves | Core integrity fell below 50% 3014 | -10/Subcaves | Core integrity fell below 20% 3250 | -10/Subcaves | Build established: Mutant 3267 | -10/Subcaves | Learned Materials non-interactive machine intel 3403 | -10/Subcaves | Discovered new exit (range 14) 3411 | -10/Subcaves | Destroyed by S-10 Pest with Light Assault Rifle Last Messages --------------- 03025_ N4-DYR(R) destroyed. 03028_ Acquired 37 matter. 03031_ Subatomizers dissect the Corrupted Disposable Heat Sink. 03039_ Acquired 10 matter. 03039_ Dropped Ion Engine. 03041_ Acquired Sub. Power Source. 03044_ Subatomizers dissect the Corrupted Disposable Heat Sink. 03044_ Acquired Scrap Shield Fragment. 03046_ Acquired Sub. Beam Cannon. 03048_ Acquired Sub. Monowheel. 03058_ Acquired Sub. Machine Gun. 03267_ Acquired derelict log, extracted data. Data stored: Materials non-interactive machine intel. 03403_ EXIT=FOUND 03407_ Sub. Beam Cannon shoots sparks and powers down. 03411_ S-10 Pest destroyed. Map ----- +----------------------------------------------------+ | ?????????????????????????????????????????????????? | | ?????????????????????????????????????????????????? | | ?????????????????????????????????????????????????? | | ?????????????????????????????????????????????????? | | ?????????????????????????????????????????????????? | | ?????????????????????????????????????????????????? | | ?????????????????????????????????????????????????? | | ?????????????????????????????????????????????????? | | ?????????????????????????????????????????????????? | | ?????????????????????????????????????????????????? | | ?????????????????????????????????????????????????? | | ?????????????????????????????????????????????????? | | ?????????????????????????????????????????????????? | | ?????????????????????????????????????????????????? | | ?????????????????????????????????????????????????? | | ????????????????????????????????????????""???????? | | ????????????????????????????????#####???""???????? | | ????????????????????????????????# #??? ##??????? | | ????????????????????????????????# #???" #??????? | | ????????????????????####???????## #??##" #??????? | | ???????????????#??#?# ###??### #??#" #??????? | | ???????????????# #$#< ##?# #### ####?### | | ????????????????# & ### "" #?# ### | | ???????????????????##R " #### | | ???????????????????# ###### | | ???????????????????## @ # ## ## ## ## | | ????????????????????# * ##### # #### | | ????????????????????##%ss### ##?? | | ?????????????????????#s ## ### | | ?????????????????????# # ## # | | ?????????????????????# ##### ### #?# | | ????????????????????? ????# ####?## #?# | | ???????????????????? ????# #?##??# ## # | | ??????????????????? ?????## ### ## ## | | ??????????????????#" t ??????## # ### | | ??????????????????#" " ??????## ## #### | | ??????????????????#"""" ?????## ### # ### | | ???????????????????####